Cogmind - Beta 13 @@@ ROGUE MODE // 2024.06.08 @ 18:56:19 Player: Gabe+Kate4EVR Result: Destroyed by H-61 Shepherd with Heavy Assault Cannon Performance ------------- Evolutions (4) 2000 Regions Visited (9) 1800 Robots Destroyed (34) 170 Value Destroyed (671) 671 Prototype IDs (3) 60 Alien Tech Used (0) 0 Bonus (200) 200 TOTAL SCORE: 4901 Bonus ------- Entered Garrisons 200 Cogmind --------- Core Integrity 0/850 Matter 280/300 Energy 100/100 System Corruption 5% Temperature Cool (6) Movement Flying (32) Location -6/Factory Parts ------- > --- POWER (1) -------- (None) > --- PROPULSION (10) -- VTOL Module VTOL Module > --- UTILITY (2) ------ (None) > --- WEAPON (2) ------- (None) > --- INVENTORY (5) ---- Light Ion Engine Improved Medium Treads Improved VSS Leg Advanced Signal Interpreter Makeshift Hammer Peak State ------------ > --- POWER ------------ Angular Momentum Engine > --- PROPULSION ------- Medium Treads Medium Treads Improved Flight Unit Improved Flight Unit Cooled Cesium-ion Thruster Cooled Cesium-ion Thruster Cooled Cesium-ion Thruster Cooled Cesium-ion Thruster Cooled Cesium-ion Thruster Cooled Cesium-ion Thruster > --- UTILITY ---------- Heat Sink Reaction Control System > --- WEAPON ----------- Katana Katana > --- INVENTORY -------- Cesium-ion Thruster Cesium-ion Thruster Cesium-ion Thruster Grenade Launcher Makeshift Hammer [Rating: 66] Favorites ----------- Power Ion Engine Engine Ion Engine Power Core Light Nuclear Core Propulsion Cooled Cesium-ion Thruster Treads Light Treads Leg Aluminum Leg Flight Unit Cooled Cesium-ion Thruster Utility Heat Sink Device Heat Sink Storage Medium Storage Unit Weapon Katana Energy Gun Small Laser Ballistic Gun Assault Rifle Impact Weapon Flail Slashing Weapon Katana Build | -11 -10 -9 -8 -7 -7 -7 -6 -6 -6 ------- Run | Yrd Mat Mat Mat Fac Low Low Fac Gar Fac Slots Evolved 8 | . . 2 2 2 . . 2 . . Power . | . . . . . . . . . . Propulsion 8 | . . 2 2 2 . . 2 . . Utility . | . . . . . . . . . . Weapon . | . . . . . . . . . . Parts Attached 69 | 6 4 16 5 . . 4 26 3 5 Power 11 | 1 . 2 . . . 1 4 1 2 Engine 6 | 1 . 2 . . . . 2 . 1 Core 5 | . . . . . . 1 2 1 1 Reactor . | . . . . . . . . . . Propulsion 39 | 2 2 6 4 . . 3 18 2 2 Treads 6 | . 2 . 1 . . . 2 . 1 Leg 3 | 2 . . . . . . 1 . . Wheel . | . . . . . . . . . . Hover . | . . . . . . . . . . Flight 30 | . . 6 3 . . 3 15 2 1 Utility 9 | 1 2 3 1 . . . 2 . . Device 7 | . 1 3 1 . . . 2 . . Storage 2 | 1 1 . . . . . . . . Processor . | . . . . . . . . . . Hackware . | . . . . . . . . . . Protection . | . . . . . . . . . . Artifact . | . . . . . . . . . . Weapon 10 | 2 . 5 . . . . 2 . 1 Energy Gun 1 | 1 . . . . . . . . . Energy Cannon . | . . . . . . . . . . Ballistic Gun 1 | 1 . . . . . . . . . Ballistic Cannon . | . . . . . . . . . . Launcher . | . . . . . . . . . . Special Weapon . | . . . . . . . . . . Impact Weapon 4 | . . 3 . . . . 1 . . Slashing Weapon 4 | . . 2 . . . . 1 . 1 Piercing Weapon . | . . . . . . . . . . Special Melee Weapon . | . . . . . . . . . . Unidentified Prototypes 1 | . . . . . . . 1 . . Parts Lost 31 | . 1 . . . . 5 12 10 3 Power 5 | . . . . . . 1 1 2 1 Propulsion 21 | . 1 . . . . 4 8 6 2 Utility 4 | . . . . . . . 2 2 . Weapon 1 | . . . . . . . 1 . . Highest Loss Streak 15 | . 1 . . . . 5 5 15 2 To Critical Strikes . | . . . . . . . . . . Average Slot Usage (%) 80 | . 92 77 99 84 84 72 80 51 31 Engine 8 | . 14 11 9 7 7 . 4 1 2 Treads 9 | . 18 11 9 7 7 . 4 . 2 Leg 2 | . 6 . . . . . 1 . . Flight 27 | . . 33 44 38 38 35 43 33 17 Device 12 | . 9 16 18 15 15 15 10 10 . Storage 3 | . 14 . . . . . . . . Energy Gun 3 | . 14 . . . . . . . . Ballistic Gun 3 | . 14 . . . . . . . . Slashing Weapon 7 | . . 4 18 15 15 15 12 6 5 Naked Turns . | . . . . . . . . . . Heaviest Build 19 | 13 19 15 9 9 9 11 19 14 9 Greatest Support 46 | 20 40 14 25 25 25 25 46 37 30 Greatest Overweight (x) 3 | . . 1 . . . . 3 1 . Average Overweight (x) . | . . . . . . . . . . Largest Inventory Capacity 10 | 8 10 10 5 5 5 5 5 5 5 Average Capacity 6 | 6 9 5 5 5 5 5 5 5 5 Most Carried 10 | 1 10 10 5 5 5 5 5 4 5 Average Carried 5 | . 8 5 4 5 5 4 4 3 4 Final Capacity 10 | 8 10 5 5 5 5 5 5 5 5 Final Carried 10 | 1 10 5 5 5 5 5 3 4 5 Class Distribution -------------------- 81% | Mutant 12% | Scavenger-Sprinter 6% | Sprinter Dominant Class ---------------- Mutant | -10/Materials Mutant | -9/Materials Mutant | -8/Materials Mutant | -7/Factory Mutant | -7/Lower Caves Scavenger-Sprinter | -7/Lower Caves Scavenger-Sprinter | -6/Factory Mutant | -6/Garrison Sprinter | -6/Factory Resources | -11 -10 -9 -8 -7 -7 -7 -6 -6 -6 ----------- Run | Yrd Mat Mat Mat Fac Low Low Fac Gar Fac Matter Collected 844 | 200 188 97 93 . 20 41 170 20 15 Remotely . | . . . . . . . . . . Salvage Created 1082 | . 338 97 22 . . 72 486 67 . Parts 67 | . 28 4 2 . . 4 22 7 . Haulers Intercepted 3 | . 1 1 . . . . 1 . . Recyclers Shooed . | . . . . . . . . . . Parts Field Recycled . | . . . . . . . . . . Retrieved Matter . | . . . . . . . . . . Parts Self-Destructed 10 | . . . . . 5 5 . . . Prevented 1 | . . . . . . 1 . . . Kills | -11 -10 -9 -8 -7 -7 -7 -6 -6 -6 ------- Run | Yrd Mat Mat Mat Fac Low Low Fac Gar Fac Combat Hostiles Destroyed 27 | . 12 3 . . . 3 6 3 . Melee 15 | . . 3 . . . 3 6 3 . Guns 12 | . 12 . . . . . . . . Classes Destroyed 9 | . 4 . 1 . . . 4 . . Worker 1 | . . . . . . . 1 . . Hauler 3 | . 1 1 . . . . 1 . . Recycler 1 | . . . . . . . 1 . . Mechanic 1 | . . . 1 . . . . . . Watcher 1 | . 1 . . . . . . . . Swarmer 22 | . 9 3 . . . 3 4 3 . Grunt 3 | . 3 . . . . . . . . Sentry 1 | . . . . . . . 1 . . Hunter 1 | . . . . . . . 1 . . Best Kill Streak 4 | . 4 3 1 . . 3 4 3 . Combat Bots Only 3 | . 3 3 . . . 3 3 3 . Max Kills in Single Turn 2 | . 2 1 1 . . 1 1 1 . Gunslinging 1 | . 1 . . . . . . . . Exploded . | . . . . . . . . . . Melee 1 | . . 1 . . . 1 1 1 . Uniques/NPCs Destroyed . | . . . . . . . . . . Combat | -11 -10 -9 -8 -7 -7 -7 -6 -6 -6 -------- Run | Yrd Mat Mat Mat Fac Low Low Fac Gar Fac Hostile Shots Fired 399 | . 54 33 6 10 . 26 182 54 34 Missed 178 | . 16 12 4 7 . 13 87 21 18 Damage Taken 2885 | . 382 201 35 64 . 189 1039 569 406 Core 1060 | . 73 58 . 12 . 50 296 341 230 Absorbed by Shields . | . . . . . . . . . . Core Remaining (%) 89 | 100 70 85 100 . . 91 . . . Volleys Fired 31 | . 31 . . . . . . . . Largest 2 | . 2 . . . . . . . . Hottest 60 | . 60 . . . . . . . . Shots Fired 62 | . 62 . . . . . . . . Gun 62 | . 62 . . . . . . . . Cannon . | . . . . . . . . . . Launcher . | . . . . . . . . . . Special . | . . . . . . . . . . Kinetic 31 | . 31 . . . . . . . . Thermal 31 | . 31 . . . . . . . . Explosive . | . . . . . . . . . . Electromagnetic . | . . . . . . . . . . Robot Hit Streak 15 | . 15 . . . . . . . . Robot Miss Streak 2 | . 2 . . . . . . . . Penetration Max . | . . . . . . . . . . Secondary Targets 2 | . 2 . . . . . . . . Max Gunslinging Chain 1 | . 1 . . . . . . . . Shots Hit Robots 79 | . 43 5 1 . . 4 22 4 . Core Hits 38 | . 19 3 . . . 3 10 3 . Critical Kills 1 | . . . . . . . 1 . . Critical Parts Destroyed 1 | . . 1 . . . . . . . Critical Strikes 3 | . . 1 . . . . 2 . . Smash 2 | . . 1 . . . . 1 . . Sever 1 | . . . . . . . 1 . . Melee Attacks 68 | . . 11 2 . . 10 39 6 . Impact 14 | . . 4 . . . . 10 . . Slashing 54 | . . 7 2 . . 10 29 6 . Piercing . | . . . . . . . . . . Sneak Attacks 6 | . . 1 1 . . . 4 . . Combat Hostiles 1 | . . . . . . . 1 . . Follow-up Attacks 4 | . . . . . . 2 2 . . Damage Inflicted 2023 | . 525 236 64 . . 147 925 126 . Guns 525 | . 525 . . . . . . . . Cannons . | . . . . . . . . . . Explosions . | . . . . . . . . . . Melee 1498 | . . 236 64 . . 147 925 126 . Ramming . | . . . . . . . . . . Kinetic 300 | . 300 . . . . . . . . Thermal 225 | . 225 . . . . . . . . Explosive . | . . . . . . . . . . Electromagnetic . | . . . . . . . . . . Impact 266 | . . 127 . . . . 139 . . Slashing 1232 | . . 109 64 . . 147 786 126 . Piercing . | . . . . . . . . . . Highest Corruption 5 | . . . . 2 2 2 5 5 5 Average Corruption 3 | . . . . 1 2 2 3 5 5 Corruption Purged . | . . . . . . . . . . Corruption Blocked . | . . . . . . . . . . Effects 13 | . . . . 1 1 1 7 1 2 Message Errors 4 | . . . . . 1 . 2 . 1 Matter Fused 2 | . . . . . . 1 . 1 . Heat Flow Errors 2 | . . . . 1 . . 1 . . Parts Rejected 2 | . . . . . . . 1 . 1 Data Loss (minor) 2 | . . . . . . . 2 . . Data Loss (major) 1 | . . . . . . . 1 . . Overload Shots . | . . . . . . . . . . Overflow Damage 115 | . . 45 24 . . 13 31 2 . Projectiles . | . . . . . . . . . . Explosions . | . . . . . . . . . . Melee 115 | . . 45 24 . . 13 31 2 . Knockbacks . | . . . . . . . . . . Impact . | . . . . . . . . . . Kinetic . | . . . . . . . . . . Secondary . | . . . . . . . . . . Self-Inflicted Damage . | . . . . . . . . . . Shots . | . . . . . . . . . . Rammed . | . . . . . . . . . . Targets Rammed . | . . . . . . . . . . Kicked . | . . . . . . . . . . Crushed . | . . . . . . . . . . Highest Temperature 121 | . . . 3 . . . 121 14 . Average Temperature 20 | . . . 3 . . . 42 7 . Received Heat Transfer 465 | . 90 18 36 27 . . 219 36 39 Siege Activations . | . . . . . . . . . . Robots Corrupted . | . . . . . . . . . . Combat Hostiles . | . . . . . . . . . . Parts Fried 1 | . . 1 . . . . . . . Impact Corruptions 1 | . . 1 . . . . . . . Robots Melted . | . . . . . . . . . . Combat Hostiles . | . . . . . . . . . . Parts Melted . | . . . . . . . . . . Heat Transferred 525 | . 525 . . . . . . . . Parts Sabotaged . | . . . . . . . . . . Parts Stolen . | . . . . . . . . . . Parts Stripped . | . . . . . . . . . . Power Chain Reactions . | . . . . . . . . . . Alert | -11 -10 -9 -8 -7 -7 -7 -6 -6 -6 ------- Run | Yrd Mat Mat Mat Fac Low Low Fac Gar Fac Peak Influence 464 | . 314 200 50 67 . . 464 331 210 Initial 212 | . . 48 . 22 . . 32 212 155 Average 114 | . 154 68 14 36 . . 157 283 158 Maximum Alert Level 2 | . 1 1 . . . . 2 1 1 Low Security (%) 79 | 100 64 96 100 100 . . 68 . 98 Level 1 19 | . 35 3 . . . . 26 100 1 Level 2 . | . . . . . . . 4 . . Level 3 . | . . . . . . . . . . Level 4 . | . . . . . . . . . . Level 5 . | . . . . . . . . . . High Security . | . . . . . . . . . . Max Security . | . . . . . . . . . . Squads Dispatched 13 | . 1 3 1 1 . . 7 . . Investigation 6 | . 1 1 1 1 . . 2 . . Extermination 1 | . . . . . . . 1 . . Reinforcement 6 | . . 2 . . . . 4 . . Assault . | . . . . . . . . . . Garrison . | . . . . . . . . . . Intercept . | . . . . . . . . . . Searches Triggered 1 | . . . . . . . 1 . . Construction Impeded . | . . . . . . . . . . Haulers Reinforced . | . . . . . . . . . . Active Scanning Responses . | . . . . . . . . . . Cargo Convoy Interrupts . | . . . . . . . . . . Stealth | -11 -10 -9 -8 -7 -7 -7 -6 -6 -6 --------- Run | Yrd Mat Mat Mat Fac Low Low Fac Gar Fac Distress Signals 4 | . 1 . . . . . 2 . 1 Communications Jammed . | . . . . . . . . . . Distress Signals . | . . . . . . . . . . Times Spotted 106 | . 15 8 5 5 . 7 45 7 14 Peak Tracking Total 20 | . 5 6 4 4 . 4 20 7 13 Tactical Retreats 9 | . . 1 . 1 . . 5 1 1 Traps | -11 -10 -9 -8 -7 -7 -7 -6 -6 -6 ------- Run | Yrd Mat Mat Mat Fac Low Low Fac Gar Fac Traps Triggered 8 | . 2 2 1 . . . 1 1 1 Indirectly . | . . . . . . . . . . Trap Hack Attempts . | . . . . . . . . . . Triggered . | . . . . . . . . . . Disarmed . | . . . . . . . . . . Reprogrammed . | . . . . . . . . . . Reused . | . . . . . . . . . . Traps Extracted . | . . . . . . . . . . Installed . | . . . . . . . . . . Triggered . | . . . . . . . . . . Machines | -11 -10 -9 -8 -7 -7 -7 -6 -6 -6 ---------- Run | Yrd Mat Mat Mat Fac Low Low Fac Gar Fac Machines Disabled 1 | . . . . . . 1 . . . Max in Single Turn 1 | . . . . . . 1 . . . Machines Repaired . | . . . . . . . . . . Machines Dismantled . | . . . . . . . . . . Machines Sabotaged . | . . . . . . . . . . Overloaded Fab Kills . | . . . . . . . . . . Hacking | -11 -10 -9 -8 -7 -7 -7 -6 -6 -6 --------- Run | Yrd Mat Mat Mat Fac Low Low Fac Gar Fac Machines Accessed 9 | . 1 2 . 2 . 1 2 1 . Terminals 6 | . 1 2 . 1 . 1 . 1 . Fabricators 1 | . . . . . . . 1 . . Repair Stations . | . . . . . . . . . . Recycling Units . | . . . . . . . . . . Scanalyzers 1 | . . . . 1 . . . . . Garrison Access 1 | . . . . . . . 1 . . Total Hacks 21 | . 1 2 . 6 . 1 9 2 . Successful 10 | . 1 . . . . 1 7 1 . Failed 11 | . . 2 . 6 . . 2 1 . Catastrophic 2 | . . 1 . . . . . 1 . Database Lockouts . | . . . . . . . . . . Manual 2 | . . 2 . . . . . . . Terminals 9 | . 1 2 . 3 . 1 . 2 . Fabricators 8 | . . . . . . . 8 . . Repair Stations . | . . . . . . . . . . Recycling Units . | . . . . . . . . . . Scanalyzers 3 | . . . . 3 . . . . . Garrison Access 1 | . . . . . . . 1 . . Terminal Hacks 3 | . 1 . . . . 1 . 1 . Record 1 | . . . . . . 1 . . . Prototype ID Bank 1 | . 1 . . . . . . . . Patrol Navigation 1 | . . . . . . . . 1 . Fabricator Hacks 6 | . . . . . . . 6 . . Network Status 6 | . . . . . . . 6 . . Repair Station Hacks . | . . . . . . . . . . Recycling Unit Hacks . | . . . . . . . . . . Scanalyzer . | . . . . . . . . . . Garrison Access Hacks 1 | . . . . . . . 1 . . Unlock Access 1 | . . . . . . . 1 . . Unauthorized Hacks . | . . . . . . . . . . Terminals . | . . . . . . . . . . Fabricators . | . . . . . . . . . . Repair Stations . | . . . . . . . . . . Recycling Units . | . . . . . . . . . . Scanalyzers . | . . . . . . . . . . Garrison Access . | . . . . . . . . . . Data Cores Recovered . | . . . . . . . . . . Used . | . . . . . . . . . . Hacking Detections 7 | . 1 1 . 2 . . 2 1 . Full Trace Events 3 | . . . . 1 . . 1 1 . Feedback Events 1 | . . . . 1 . . . . . Corruption 1 | . . . . 1 . . . . . Feedback Blocked . | . . . . . . . . . . Robot Schematics Acquired . | . . . . . . . . . . Robots Built . | . . . . . . . . . . Authchips . | . . . . . . . . . . Time . | . . . . . . . . . . Total Robot Build Rating . | . . . . . . . . . . Part Schematics Acquired . | . . . . . . . . . . Parts Built . | . . . . . . . . . . Authchips . | . . . . . . . . . . Time . | . . . . . . . . . . Total Part Build Rating . | . . . . . . . . . . Parts Repaired . | . . . . . . . . . . Time . | . . . . . . . . . . Parts Recycled . | . . . . . . . . . . Recycled Matter . | . . . . . . . . . . Retrieved Matter . | . . . . . . . . . . Retrieved Components . | . . . . . . . . . . Parts Scanalyzed . | . . . . . . . . . . Part Schematics Acquired . | . . . . . . . . . . Parts Damaged . | . . . . . . . . . . Bothacking | -11 -10 -9 -8 -7 -7 -7 -6 -6 -6 ------------ Run | Yrd Mat Mat Mat Fac Low Low Fac Gar Fac Used RIF Installer . | . . . . . . . . . . Robots Hacked . | . . . . . . . . . . Non-combat . | . . . . . . . . . . Combat . | . . . . . . . . . . Robot Hacks Applied . | . . . . . . . . . . Relay Couplers Released . | . . . . . . . . . . Fabnet Peak Effective % . | . . . . . . . . . . Robots Rewired . | . . . . . . . . . . Allies Hacked . | . . . . . . . . . . Hacks Repelled . | . . . . . . . . . . Allies | -11 -10 -9 -8 -7 -7 -7 -6 -6 -6 -------- Run | Yrd Mat Mat Mat Fac Low Low Fac Gar Fac Total Allies . | . . . . . . . . . . Largest Group . | . . . . . . . . . . Highest-Rated Group . | . . . . . . . . . . Highest-Rated Ally . | . . . . . . . . . . Total Orders . | . . . . . . . . . . Ally Attacks . | . . . . . . . . . . Total Damage . | . . . . . . . . . . Kills . | . . . . . . . . . . Allies Corrupted . | . . . . . . . . . . Allies Melted . | . . . . . . . . . . Intel | -11 -10 -9 -8 -7 -7 -7 -6 -6 -6 ------- Run | Yrd Mat Mat Mat Fac Low Low Fac Gar Fac Robot Analysis Total . | . . . . . . . . . . Derelict Logs Recovered 2 | . . . . . 1 1 . . . Drone Launches . | . . . . . . . . . . Drone Recoveries . | . . . . . . . . . . Exploration | -11 -10 -9 -8 -7 -7 -7 -6 -6 -6 ------------- Run | Yrd Mat Mat Mat Fac Low Low Fac Gar Fac Turns Passed 2065 | 78 502 433 100 158 162 106 353 62 111 Spaces Moved 2947 | 61 258 477 176 320 358 282 647 119 249 Core 16 | 6 . . . . . . 5 5 . Treads 202 | . 196 . . . . . . . 6 Legs 117 | 55 62 . . . . . . . . Wheels . | . . . . . . . . . . Hover . | . . . . . . . . . . Flight 2612 | . . 477 176 320 358 282 642 114 243 Fastest Speed 14 | 50 120 54 25 45 45 25 14 17 26 Average Speed 51 | 113 150 55 47 47 45 25 31 23 37 Slowest Speed 200 | 120 160 134 54 48 45 45 200 100 160 Overloaded Moves 135 | . . . . . . . . . 135 Propulsion Burnouts 1 | . . . . . . . . . 1 Robots Hopped 39 | . . 6 3 5 . 4 19 . 2 Cave-ins Triggered . | . . . . . . . . . . Exploration Rate (%) 27 | 4 39 48 15 9 53 48 22 27 12 Regions Visited 9 Branch Regions 2 Pre-discovered Areas . | . . . . . . . . . . Known Exits Taken 1 | . . . . . . . 1 . . Unknown Exits Taken 7 | 1 1 1 1 1 1 1 . . . Scrap Searched 6 | . . . . . 4 2 . . . Spaces Dug . | . . . . . . . . . . Terrain Destroyed . | . . . . . . . . . . Melee . | . . . . . . . . . . Projectile . | . . . . . . . . . . AOE . | . . . . . . . . . . Terrain Rammed . | . . . . . . . . . . Walls Destroyed . | . . . . . . . . . . Machines Disabled . | . . . . . . . . . . Actions | -11 -10 -9 -8 -7 -7 -7 -6 -6 -6 --------- Run | Yrd Mat Mat Mat Fac Low Low Fac Gar Fac Total 3309 | 67 319 627 190 320 358 298 726 141 263 Wait 170 | . 2 109 . 6 1 7 26 10 9 Move 2863 | 60 257 464 169 311 357 273 609 118 245 Hop 36 | . . 6 3 3 . 4 18 . 2 Pick Up 25 | 1 14 3 4 . . 1 1 1 . Fast Attach 44 | 6 4 5 4 . . 4 15 3 3 Attach 10 | . . 6 . . . . 3 . 1 Detach 9 | . 3 4 . . . . 1 . 1 Swap 15 | . . 5 1 . . . 8 . 1 Drop 41 | . 8 14 7 . . 1 10 . 1 Fire 31 | . 31 . . . . . . . . Melee 62 | . . 11 2 . . 8 35 6 . Ram . | . . . . . . . . . . Kick . | . . . . . . . . . . Crush . | . . . . . . . . . . Escape Stasis 3 | . . . . . . . . 3 . Rewire . | . . . . . . . . . . Trap . | . . . . . . . . . . Miscellaneous . | . . . . . . . . . . Route ------- -11/Scrapyard -10/Materials (discovered 2 exits: *Mat / [*Min]) -9/Materials (discovered 2 exits: *Mat / [*Min]) -8/Materials -7/Factory -7/Lower Caves -7/Lower Caves -6/Factory (discovered 2 exits: Low / Gar) -6/Garrison -6/Factory History --------- Turn | Location | Event 3 | -11/Scrapyard | Discovered new exit (range 15) 79 | -11/Scrapyard | Entered Materials 115 | -10/Materials | Discovered new exit (range 5) 315 | -10/Materials | Build established: Mutant 345 | -10/Materials | Discovered new exit (range 16) 581 | -10/Materials | Entered another Materials area 581 | -9/Materials | Evolved 2 slots: Propulsion x2 770 | -9/Materials | Discovered new exit (range 13) 966 | -9/Materials | Discovered new exit (range 16) 1014 | -9/Materials | Entered another Materials area 1014 | -8/Materials | Evolved 2 slots: Propulsion x2 1109 | -8/Materials | Discovered new exit (range 10) 1114 | -8/Materials | Entered Factory 1114 | -7/Factory | Evolved 2 slots: Propulsion x2 1265 | -7/Factory | Discovered new exit (range 15) 1272 | -7/Factory | Entered Lower Caves 1381 | -7/Lower Caves | Learned location of 1 exit from Factory 1408 | -7/Lower Caves | Encountered a Warlord checkpoint 1428 | -7/Lower Caves | Discovered new exit (range 11) 1434 | -7/Lower Caves | Entered another Lower Caves area 1466 | -7/Lower Caves | Learned Factory emergency access door positions 1473 | -7/Lower Caves | Attacked by a delusional Derelict stockpiling parts 1483 | -7/Lower Caves | Lost 5 parts (1p4n) 1538 | -7/Lower Caves | Discovered new exit (range 10) 1540 | -7/Lower Caves | Entered Factory 1540 | -6/Factory | Evolved 2 slots: Propulsion x2 1541 | -6/Factory | Identified exit to Lower Caves 1724 | -6/Factory | Lost 4 parts (1p1n2u) 1848 | -6/Factory | Spotted B-75 Beast 1889 | -6/Factory | Identified exit to Garrison 1890 | -6/Factory | Search patrols dispatched 1893 | -6/Factory | Entered Garrison 1908 | -6/Garrison | Spotted B-75 Beast 1932 | -6/Garrison | Core integrity fell below 50% 1952 | -6/Garrison | Discovered new exit (range 10) 1955 | -6/Garrison | Entered Factory 1980 | -6/Factory | Lost 15 parts (2p10n2u1w) 1984 | -6/Factory | Core integrity fell below 20% 2003 | -6/Factory | Spotted B-75 Beast 2066 | -6/Factory | Destroyed by H-61 Shepherd with Heavy Assault Cannon Last Messages --------------- 01983_ Triggered Heavy Explosive Trap. 01983_ An explosion rips through the floor. 01983_ VTOL Module destroyed. 01983_ T-07 Excavator destroyed. 01985_ Acquired Lgt. Ion Engine. 01986_ K-01 Serf collects debris. 01986_ Slug penetrates Wall. 01987_ Acquired 15 matter. 01989_ K-01 Serf collects debris. 02006_ C-30 ARC bursts open, deploying its payload. 02006_ L-41 Fighter unfolds itself. 02006_ G-50 Soldier unfolds itself. 02011_ M8W12&WQD459&#WSPRIL 02036_ Slug penetrates Wall. 02045_ System corrupted: Katana rejected. 02045_ Acquired Katana. 02050_ Cld. Cesium-ion Thruster destroyed. 02050_ Cld. Cesium-ion Thruster burned out. 02051_ Dropped Katana. 02066_ Lgt. Fission Core destroyed. Map ----- +----------------------------------------------------+ | ?????????????????????????????????????????????????? | | ?????????????????????????????????????????????????? | | ?????????????????????????????????????????????????? | | ?????????????????????????????????????????????????? | | ?????????????????????????????????????????????????? | | ?????????????????????????????????????????????????? | | ?????????????????????????????????????????????????? | | ?????????????????????????????????????????????????? | | ?????????????????????????????????????????????????? | | ?????????????????????????????????????????????????? | | ??????????????????????? ???????????????????????? | | ??????????????????????# ???????????????????????? | | ??????????????????????# ???????????????????????? | | ??????????????????????# ???????????????????????? | | ??????????????????????# ???????????????????????? | | ??????????????????????+ ???????????????????????? | | ??????????????????????# ???????????????????????? | | ??????????????????????# #??????????????????????? | | ??????????????????????# #??????????????????????? | | ??????????????????????# #??????????#########???? | | ??????????????????????# #?????????? ???? | | ??????????????????????# #????????? ??? | | ????????????????????### ###??????? ??? | | ????????????????????# % #??????? ??? | | ????????????????????# ######## ?? | | ????????????????????#= @ u ?? | | ????????????????????# H % ? | | ?????????????? ? | | ??????????????####### ##### ? | | ????????????????????# #???# ? | | ???????????????????############## ? | | ???????????????????# # ? | | ???????????????????# ! # ? | | ???????????????????# # ? | | ???????????????????# # ? | | ???????????????????# # """ """ """ ?? | | ???????????????????# # """ """ ""???? | | ???????????????????# + """ """??????? | | ???????????????????# ! # ?????? | | ???????????????????# #!! """ """ ""???? | | ???????????????????# #!! """ ""???????? | | ???????????????????# !#!! """ ""???????? | | ???????????????????# # ???????? | | ???????????????????##+#####+##### ????????? | | ??????#########?????# #?????????# ????????? | | ??????# #???### ###???????? ???????? | | ??????# ##### #????????"" ???????? | | ??????# ###??????" ???????? | | ??????# #????"F ??????? | | ####### ### #?????? """???????? | +----------------------------------------------------+ Best States ------------- Heat Dissipation 51 Coolant Potential 50 Energy Generation 18 Energy Capacity 300 Matter Stores 300 Matter Capacity 300 Sight Range 16 Terrain Scan Density 10 Power Amplification 20 Evasion (%) 73 Recoil Reduction 2 Item Schematics ----------------- None Robot Schematics ------------------ None Fabricated ------------ Nothing Alien Tech Used ----------------- None Achievements -------------- None Challenges ------------ None Game ------ Seed ArcImpactHumpback Manual? 0 Play Time 00:28:44 Cumulative 171.9 hours Start 2024.06.08 @ 15:53:09 End 2024.06.08 @ 18:56:19 Sessions 1 Manual Loads 0 Difficulty Rogue Special Mode None Game No. 342 Rogue 342 Adventurer 0 Explorer 0 Win Type - Total 0 Types 0/0/0/0/0/0/0/0/0 Lore% 47 Gallery% 64 Achievement% 45 Wizard Run 0 Options --------- Layout 0 ASCII 0 Keyboard 1 Movement Numpad Keybinds 0 Fullscreen 2 Font 18/X11 Map View 76x50 Zoom Use 0% Tactical HUD 1 Map Filters NONE Filters NONE Steam 1 RUN: a55c360a-b274-461d-8a44-596ed09b6945